[Event "*** MasterClass Titled Tuesday Blitz"]
[Site "Chess.com"]
[Date "2017.11.07"]
[Round "4"]
[White "GMHess"]
[Black "DanielNaroditsky"]
[Result "0-1"]
[WhiteElo "2574"]
[BlackElo "2738"]
[TimeControl "180+2"]
[EndTime "15:01:48 PST"]
[Termination "DanielNaroditsky won by resignation"]

1. d4 {[%clk 0:03:01.9]} 1... Nf6 {[%clk 0:03:00.9]} 2. c4 {[%clk 0:03:02]} 2...
e6 {[%clk 0:03:02]} 3. Nc3 {[%clk 0:03:02.8]} 3... Bb4 {[%clk 0:03:02.8]} 4. Qc2
{[%clk 0:03:04]} 4... b6 {[%clk 0:03:03.4]} 5. a3 {[%clk 0:02:38.3]} 5... Bxc3+
{[%clk 0:03:03.9]} 6. Qxc3 {[%clk 0:02:40.2]} 6... Bb7 {[%clk 0:03:04.9]} 7. Nf3
{[%clk 0:02:24.8]} 7... d6 {[%clk 0:03:03.2]} 8. Bf4 {[%clk 0:02:18]} 8... O-O
{[%clk 0:03:01.4]} 9. e3 {[%clk 0:02:19.1]} 9... Nbd7 {[%clk 0:03:02.6]} 10. Be2
{[%clk 0:02:17.9]} 10... Ne4 {[%clk 0:02:49.7]} 11. Qc2 {[%clk 0:02:16.7]} 11...
f5 {[%clk 0:02:50.8]} 12. h4 {[%clk 0:02:04.2]} 12... Qf6 {[%clk 0:02:44]} 13.
Bd3 {[%clk 0:01:32.2]} 13... e5 {[%clk 0:02:38.3]} 14. Bh2 {[%clk 0:01:16.5]}
14... a5 {[%clk 0:01:56.7]} 15. O-O-O {[%clk 0:01:08.9]} 15... a4 {[%clk
0:01:53.1]} 16. Kb1 {[%clk 0:00:58.4]} 16... Ra5 {[%clk 0:01:52.3]} 17. c5
{[%clk 0:00:33.7]} 17... bxc5 {[%clk 0:01:46.9]} 18. dxe5 {[%clk 0:00:34.5]}
18... Nxe5 {[%clk 0:01:31.6]} 19. Nxe5 {[%clk 0:00:33.3]} 19... dxe5 {[%clk
0:01:33.5]} 20. f3 {[%clk 0:00:34.8]} 20... Nd6 {[%clk 0:01:22.5]} 21. Qc3
{[%clk 0:00:36.1]} 21... Raa8 {[%clk 0:01:00.2]} 22. Bxe5 {[%clk 0:00:36.4]}
22... Qf7 {[%clk 0:00:57.8]} 23. Qxc5 {[%clk 0:00:27.6]} 23... Bd5 {[%clk
0:00:59.2]} 24. Ka1 {[%clk 0:00:22.9]} 24... Qe6 {[%clk 0:00:45.8]} 25. Bc3
{[%clk 0:00:18.2]} 25... Bb3 {[%clk 0:00:46.1]} 26. Rd2 {[%clk 0:00:15.1]} 26...
Rf7 {[%clk 0:00:47.5]} 27. Rc1 {[%clk 0:00:14.8]} 27... Re8 {[%clk 0:00:47.5]}
28. Bd4 {[%clk 0:00:15.8]} 28... h6 {[%clk 0:00:43.6]} 29. Bc2 {[%clk
0:00:16.1]} 29... Rb8 {[%clk 0:00:31.6]} 30. Bxb3 {[%clk 0:00:15.2]} 30... axb3
{[%clk 0:00:33.5]} 31. Kb1 {[%clk 0:00:10.3]} 31... Kh7 {[%clk 0:00:31.2]} 32.
Qe5 {[%clk 0:00:10.5]} 32... Qg6 {[%clk 0:00:31.4]} 33. Qf4 {[%clk 0:00:05.7]}
33... Qe6 {[%clk 0:00:29]} 34. Qe5 {[%clk 0:00:06.6]} 34... Qg6 {[%clk
0:00:30.2]} 35. Ka1 {[%clk 0:00:07]} 35... Rb5 {[%clk 0:00:23.6]} 36. Qf4 {[%clk
0:00:07.3]} 36... Qe6 {[%clk 0:00:24.9]} 37. Rc5 {[%clk 0:00:07.4]} 37... Rxc5
{[%clk 0:00:21.7]} 38. Bxc5 {[%clk 0:00:09.3]} 38... Nc4 {[%clk 0:00:23.5]} 39.
Rd1 {[%clk 0:00:09.6]} 39... Rd7 {[%clk 0:00:21.7]} 40. Rxd7 {[%clk 0:00:09.5]}
40... Qxd7 {[%clk 0:00:22.3]} 41. Bd4 {[%clk 0:00:10.7]} 41... c5 {[%clk
0:00:20.7]} 42. Kb1 {[%clk 0:00:06.1]} 42... cxd4 {[%clk 0:00:21]} 43. Qxd4
{[%clk 0:00:08]} 43... Qc6 {[%clk 0:00:17.7]} 44. Qc3 {[%clk 0:00:07.9]} 44...
Nxa3+ {[%clk 0:00:18.5]} 45. Kc1 {[%clk 0:00:08.6]} 45... Qxc3+ {[%clk
0:00:19.5]} 46. bxc3 {[%clk 0:00:09.7]} 46... Nc4 {[%clk 0:00:21.4]} 47. e4
{[%clk 0:00:10.8]} 47... fxe4 {[%clk 0:00:23.1]} 48. fxe4 {[%clk 0:00:12.7]}
48... Kg6 {[%clk 0:00:24.2]} 0-1

[Event "*** MasterClass Titled Tuesday Blitz"]
[Site "Chess.com"]
[Date "2017.11.07"]
[Round "4"]
[White "Jospem"]
[Black "jncool68"]
[Result "0-1"]
[WhiteElo "2601"]
[BlackElo "2468"]
[TimeControl "180+2"]
[EndTime "15:01:48 PST"]
[Termination "jncool68 won by resignation"]

1. e4 {[%clk 0:03:01.9]} 1... c5 {[%clk 0:03:00.4]} 2. Nf3 {[%clk 0:03:03.4]}
2... d6 {[%clk 0:03:01.5]} 3. d4 {[%clk 0:03:00.9]} 3... cxd4 {[%clk 0:03:03.4]}
4. Nxd4 {[%clk 0:03:02.8]} 4... Nf6 {[%clk 0:03:04.2]} 5. Nc3 {[%clk 0:03:04.3]}
5... e6 {[%clk 0:03:05.6]} 6. g4 {[%clk 0:03:04.6]} 6... h6 {[%clk 0:03:05.9]}
7. h4 {[%clk 0:03:05.6]} 7... Nc6 {[%clk 0:03:05.7]} 8. Nb3 {[%clk 0:03:06.7]}
8... Be7 {[%clk 0:02:58.5]} 9. Rg1 {[%clk 0:02:56.3]} 9... d5 {[%clk 0:02:59]}
10. exd5 {[%clk 0:02:53.7]} 10... Nxd5 {[%clk 0:02:59.7]} 11. Nxd5 {[%clk
0:02:54.8]} 11... exd5 {[%clk 0:03:01.2]} 12. g5 {[%clk 0:02:45]} 12... hxg5
{[%clk 0:03:01.1]} 13. hxg5 {[%clk 0:02:46.9]} 13... Bf5 {[%clk 0:03:01.2]} 14.
c3 {[%clk 0:02:45.5]} 14... Qd6 {[%clk 0:02:53.2]} 15. Be3 {[%clk 0:02:42.3]}
15... O-O-O {[%clk 0:02:43.7]} 16. Qf3 {[%clk 0:02:26.4]} 16... Be4 {[%clk
0:02:43.2]} 17. Qg4+ {[%clk 0:02:27.3]} 17... Qe6 {[%clk 0:02:40.7]} 18. Be2
{[%clk 0:02:24.1]} 18... Kb8 {[%clk 0:02:31.7]} 19. O-O-O {[%clk 0:02:22]} 19...
Bf5 {[%clk 0:02:27.4]} 20. Qa4 {[%clk 0:02:15.2]} 20... Bg6 {[%clk 0:02:20.9]}
21. Nd4 {[%clk 0:01:52.9]} 21... Nxd4 {[%clk 0:02:12.5]} 22. Qxd4 {[%clk
0:01:54.8]} 22... b6 {[%clk 0:02:11.2]} 23. Bf3 {[%clk 0:01:45.1]} 23... Bc5
{[%clk 0:02:05.3]} 24. Bf4+ {[%clk 0:01:22.5]} 24... Kc8 {[%clk 0:02:04.6]} 25.
Qa4 {[%clk 0:01:23.9]} 25... Kb7 {[%clk 0:01:56.7]} 26. Qb3 {[%clk 0:00:44.1]}
26... Qf5 {[%clk 0:01:44.2]} 27. Bxd5+ {[%clk 0:00:28.2]} 27... Kc8 {[%clk
0:01:42.1]} 28. Qa4 {[%clk 0:00:25.3]} 28... Qb1+ {[%clk 0:01:26]} 29. Kd2
{[%clk 0:00:26.7]} 29... Rxd5+ {[%clk 0:01:26.8]} 30. Ke2 {[%clk 0:00:24.9]}
30... Qe4+ {[%clk 0:01:20.6]} 31. Qxe4 {[%clk 0:00:24.1]} 31... Bxe4 {[%clk
0:01:22.5]} 32. Be3 {[%clk 0:00:21.2]} 32... Bxe3 {[%clk 0:01:19.9]} 33. Kxe3
{[%clk 0:00:23.1]} 33... Rxd1 {[%clk 0:01:20.5]} 34. Rxd1 {[%clk 0:00:25]} 34...
Bf5 {[%clk 0:01:20.8]} 35. c4 {[%clk 0:00:25]} 35... Re8+ {[%clk 0:01:20]} 36.
Kf4 {[%clk 0:00:26.3]} 36... Bg6 {[%clk 0:01:19.7]} 37. f3 {[%clk 0:00:27.5]}
37... Re2 {[%clk 0:01:20.4]} 38. c5 {[%clk 0:00:23.8]} 38... bxc5 {[%clk
0:01:20]} 39. Rd5 {[%clk 0:00:21.2]} 39... Rc2 {[%clk 0:01:20.7]} 40. a3 {[%clk
0:00:22.3]} 40... Kc7 {[%clk 0:01:21.6]} 41. b4 {[%clk 0:00:23.5]} 41... c4
{[%clk 0:01:21.9]} 42. Rc5+ {[%clk 0:00:24.6]} 42... Kd6 {[%clk 0:01:22.8]} 43.
Ke3 {[%clk 0:00:25]} 43... Bd3 {[%clk 0:01:18.9]} 44. Ra5 {[%clk 0:00:19.6]}
44... Bg6 {[%clk 0:01:05.9]} 45. Rxa7 {[%clk 0:00:17]} 45... Rc1 {[%clk
0:01:06.1]} 46. Ra6+ {[%clk 0:00:17.9]} 46... Kc7 {[%clk 0:01:05.3]} 47. Ra5
{[%clk 0:00:19.1]} 47... c3 {[%clk 0:01:05.7]} 48. Rc5+ {[%clk 0:00:18]} 48...
Kd6 {[%clk 0:01:04.7]} 49. f4 {[%clk 0:00:18.8]} 49... c2 {[%clk 0:01:00.2]} 50.
f5 {[%clk 0:00:12.3]} 50... Bxf5 {[%clk 0:01:00.3]} 0-1

[Event "*** MasterClass Titled Tuesday Blitz"]
[Site "Chess.com"]
[Date "2017.11.07"]
[Round "4"]
[White "gpeloui"]
[Black "Ilja_Semjonovs"]
[Result "1-0"]
[WhiteElo "2269"]
[BlackElo "2365"]
[TimeControl "180+2"]
[EndTime "15:01:50 PST"]
[Termination "gpeloui won by resignation"]

1. e4 {[%clk 0:03:01.9]} 1... e5 {[%clk 0:03:01.1]} 2. Nf3 {[%clk 0:03:02.4]}
2... Nc6 {[%clk 0:03:02.3]} 3. Bb5 {[%clk 0:03:03.3]} 3... a6 {[%clk 0:03:03.3]}
4. Bxc6 {[%clk 0:03:03.4]} 4... dxc6 {[%clk 0:03:03.6]} 5. d3 {[%clk 0:03:03.5]}
5... Bd6 {[%clk 0:03:02.6]} 6. Nbd2 {[%clk 0:03:01.8]} 6... Nf6 {[%clk
0:03:03.8]} 7. h3 {[%clk 0:03:02.8]} 7... h6 {[%clk 0:03:04.5]} 8. Nc4 {[%clk
0:03:03.7]} 8... Qe7 {[%clk 0:03:02]} 9. O-O {[%clk 0:03:01.9]} 9... O-O {[%clk
0:02:59.6]} 10. Ne3 {[%clk 0:02:58.6]} 10... Be6 {[%clk 0:02:50.5]} 11. Nh4
{[%clk 0:02:54.3]} 11... Nxe4 {[%clk 0:02:49.1]} 12. Nhf5 {[%clk 0:02:54.2]}
12... Qf6 {[%clk 0:02:37.7]} 13. dxe4 {[%clk 0:02:54.4]} 13... Rad8 {[%clk
0:02:33.6]} 14. Ng4 {[%clk 0:02:42.7]} 14... Qg6 {[%clk 0:02:30.3]} 15. Nh4
{[%clk 0:02:37.3]} 15... Qxe4 {[%clk 0:02:26.6]} 16. Qf3 {[%clk 0:01:53]} 16...
Qxc2 {[%clk 0:02:23.7]} 17. Re1 {[%clk 0:01:40]} 17... f6 {[%clk 0:02:08.6]} 18.
Ne3 {[%clk 0:01:29.2]} 18... Qh7 {[%clk 0:02:02.6]} 19. Nef5 {[%clk 0:01:28]}
19... Bxf5 {[%clk 0:02:03.2]} 20. Nxf5 {[%clk 0:01:29.9]} 20... Bc5 {[%clk
0:01:34.6]} 21. h4 {[%clk 0:01:26.5]} 21... h5 {[%clk 0:01:31.1]} 22. Be3 {[%clk
0:01:10.3]} 22... Bxe3 {[%clk 0:01:24.4]} 23. Rxe3 {[%clk 0:01:12.2]} 23... g6
{[%clk 0:01:25.9]} 24. Ng3 {[%clk 0:01:05.9]} 24... Rd6 {[%clk 0:01:26.5]} 25.
Ne4 {[%clk 0:01:06.5]} 25... Re6 {[%clk 0:00:50.3]} 26. Nc5 {[%clk 0:01:05.9]}
26... Rd6 {[%clk 0:00:49.7]} 27. Nxb7 {[%clk 0:01:05.7]} 27... Rd4 {[%clk
0:00:44.7]} 28. Qxc6 {[%clk 0:00:56.7]} 28... Qe7 {[%clk 0:00:39.8]} 29. Rg3
{[%clk 0:00:55]} 29... Kh7 {[%clk 0:00:34.1]} 30. Qc2 {[%clk 0:00:47.5]} 30...
f5 {[%clk 0:00:31.6]} 31. Rc1 {[%clk 0:00:43.4]} 31... Kh6 {[%clk 0:00:28.5]}
32. Na5 {[%clk 0:00:27.6]} 32... Qxh4 {[%clk 0:00:25.2]} 33. Qxc7 {[%clk
0:00:23.2]} 33... Qd8 {[%clk 0:00:22]} 34. Qc6 {[%clk 0:00:20.9]} 34... Rf6
{[%clk 0:00:16.7]} 35. Qc3 {[%clk 0:00:22.2]} 35... Rf4 {[%clk 0:00:14]} 36. Nc6
{[%clk 0:00:22.3]} 36... Qb6 {[%clk 0:00:10.2]} 37. Rc2 {[%clk 0:00:19.2]} 37...
Rxf2 {[%clk 0:00:07.7]} 38. Rxf2 {[%clk 0:00:19.4]} 38... Rxc6 {[%clk
0:00:07.8]} 39. Qe3+ {[%clk 0:00:20]} 39... Qxe3 {[%clk 0:00:04.5]} 40. Rxe3
{[%clk 0:00:21.9]} 40... Rc1+ {[%clk 0:00:06]} 41. Kh2 {[%clk 0:00:22.5]} 41...
Rc4 {[%clk 0:00:06.7]} 42. Rxe5 {[%clk 0:00:22.8]} 42... Rh4+ {[%clk 0:00:07.1]}
43. Kg1 {[%clk 0:00:23.5]} 43... Ra4 {[%clk 0:00:09]} 44. a3 {[%clk 0:00:24.1]}
1-0

[Event "*** MasterClass Titled Tuesday Blitz"]
[Site "Chess.com"]
[Date "2017.11.07"]
[Round "4"]
[White "Aygehovit1992"]
[Black "Divertissement"]
[Result "1-0"]
[WhiteElo "2517"]
[BlackElo "2401"]
[TimeControl "180+2"]
[EndTime "15:01:50 PST"]
[Termination "Aygehovit1992 won by resignation"]

1. e4 {[%clk 0:02:59.5]} 1... c5 {[%clk 0:03:00.6]} 2. Nf3 {[%clk 0:02:43.4]}
2... e6 {[%clk 0:03:01.2]} 3. d4 {[%clk 0:02:44.8]} 3... cxd4 {[%clk 0:03:02.6]}
4. Nxd4 {[%clk 0:02:46.7]} 4... Nc6 {[%clk 0:03:04.1]} 5. Nc3 {[%clk 0:02:48.6]}
5... a6 {[%clk 0:03:04.8]} 6. Be3 {[%clk 0:02:49.5]} 6... Nf6 {[%clk 0:03:05.3]}
7. Qf3 {[%clk 0:02:50.9]} 7... Bb4 {[%clk 0:02:47.9]} 8. Bd3 {[%clk 0:02:29.1]}
8... d5 {[%clk 0:02:31.6]} 9. exd5 {[%clk 0:02:28.2]} 9... Nxd5 {[%clk
0:02:24.3]} 10. Nxc6 {[%clk 0:02:29]} 10... bxc6 {[%clk 0:02:24.6]} 11. O-O
{[%clk 0:02:30.3]} 11... O-O {[%clk 0:02:07.1]} 12. Ne4 {[%clk 0:02:19.6]} 12...
Be7 {[%clk 0:02:00.2]} 13. Rad1 {[%clk 0:02:11.4]} 13... Qc7 {[%clk 0:01:54.2]}
14. a3 {[%clk 0:02:05.4]} 14... e5 {[%clk 0:01:48.9]} 15. c4 {[%clk 0:02:05.5]}
15... Nf6 {[%clk 0:01:48.4]} 16. Rfe1 {[%clk 0:02:02.7]} 16... Be6 {[%clk
0:01:23.4]} 17. Nxf6+ {[%clk 0:01:26.3]} 17... Bxf6 {[%clk 0:01:22.5]} 18. b4
{[%clk 0:01:28.2]} 18... Be7 {[%clk 0:01:07]} 19. g4 {[%clk 0:01:12.7]} 19...
Rad8 {[%clk 0:00:51.3]} 20. h3 {[%clk 0:01:02.5]} 20... f6 {[%clk 0:00:49.8]}
21. Qg3 {[%clk 0:00:50.7]} 21... Rxd3 {[%clk 0:00:37.9]} 22. Rxd3 {[%clk
0:00:50.7]} 22... Bxc4 {[%clk 0:00:39.4]} 23. Rc3 {[%clk 0:00:47.7]} 23... Bd5
{[%clk 0:00:40.7]} 24. Rd1 {[%clk 0:00:48.9]} 24... Qd7 {[%clk 0:00:37.4]} 25.
Bc5 {[%clk 0:00:49.5]} 25... Bxc5 {[%clk 0:00:32.3]} 26. Rxc5 {[%clk 0:00:51.4]}
26... f5 {[%clk 0:00:28.7]} 27. gxf5 {[%clk 0:00:44.9]} 27... Qxf5 {[%clk
0:00:24.1]} 28. Re1 {[%clk 0:00:42.7]} 28... Rf6 {[%clk 0:00:20.8]} 29. Rxd5
{[%clk 0:00:37]} 29... cxd5 {[%clk 0:00:12.1]} 30. Rxe5 {[%clk 0:00:37.8]} 30...
Qb1+ {[%clk 0:00:12]} 31. Kh2 {[%clk 0:00:38.8]} 31... Rg6 {[%clk 0:00:13.2]}
32. Rg5 {[%clk 0:00:34.1]} 32... Rxg5 {[%clk 0:00:06.6]} 33. Qxg5 {[%clk
0:00:36]} 33... Qe4 {[%clk 0:00:08.2]} 34. Qe3 {[%clk 0:00:32.4]} 34... Qxe3
{[%clk 0:00:08.2]} 35. fxe3 {[%clk 0:00:33.6]} 35... Kf7 {[%clk 0:00:10.1]} 36.
a4 {[%clk 0:00:34.7]} 36... Ke7 {[%clk 0:00:11.5]} 37. Kg3 {[%clk 0:00:36]}
37... Kd6 {[%clk 0:00:12]} 38. Kf4 {[%clk 0:00:37.3]} 38... Kc6 {[%clk
0:00:10.4]} 39. Ke5 {[%clk 0:00:38.4]} 39... h6 {[%clk 0:00:06.2]} 40. Kf5
{[%clk 0:00:36.9]} 40... d4 {[%clk 0:00:03.3]} 41. exd4 {[%clk 0:00:37]} 41...
Kd5 {[%clk 0:00:05.2]} 42. b5 {[%clk 0:00:30.6]} 1-0

[Event "*** MasterClass Titled Tuesday Blitz"]
[Site "Chess.com"]
[Date "2017.11.07"]
[Round "4"]
[White "VladimirBelous"]
[Black "Buffy7"]
[Result "0-1"]
[WhiteElo "2659"]
[BlackElo "2494"]
[TimeControl "180+2"]
[EndTime "15:02:08 PST"]
[Termination "Buffy7 won by resignation"]

1. Nf3 {[%clk 0:03:01.9]} 1... Nf6 {[%clk 0:02:58.9]} 2. c4 {[%clk 0:02:56]}
2... g6 {[%clk 0:02:56.5]} 3. Nc3 {[%clk 0:02:55.7]} 3... d5 {[%clk 0:02:56.9]}
4. cxd5 {[%clk 0:02:55.9]} 4... Nxd5 {[%clk 0:02:58.7]} 5. Qa4+ {[%clk
0:02:55.5]} 5... Bd7 {[%clk 0:02:56.1]} 6. Qd4 {[%clk 0:02:54.4]} 6... Nf6
{[%clk 0:02:56.5]} 7. e4 {[%clk 0:02:53.6]} 7... Nc6 {[%clk 0:02:54.1]} 8. Qa4
{[%clk 0:02:53.3]} 8... Ne5 {[%clk 0:02:42.6]} 9. Qb3 {[%clk 0:02:46.1]} 9...
Nxf3+ {[%clk 0:02:40.4]} 10. gxf3 {[%clk 0:02:48]} 10... Bg7 {[%clk 0:02:22.6]}
11. Qxb7 {[%clk 0:02:45.2]} 11... O-O {[%clk 0:02:23.1]} 12. d4 {[%clk
0:02:45.9]} 12... a5 {[%clk 0:02:00.6]} 13. Qb3 {[%clk 0:02:37.8]} 13... a4
{[%clk 0:01:50.1]} 14. Qd1 {[%clk 0:02:37.7]} 14... Qb8 {[%clk 0:01:50.8]} 15.
a3 {[%clk 0:02:31.4]} 15... Qb6 {[%clk 0:01:45.3]} 16. Bc4 {[%clk 0:02:25.4]}
16... e6 {[%clk 0:01:40.5]} 17. O-O {[%clk 0:02:16.8]} 17... Nh5 {[%clk
0:01:38.9]} 18. Be3 {[%clk 0:02:13.9]} 18... Qxb2 {[%clk 0:01:34.8]} 19. Qd3
{[%clk 0:02:15]} 19... Qb6 {[%clk 0:01:30.5]} 20. Rab1 {[%clk 0:02:13.9]} 20...
Qd6 {[%clk 0:01:30.8]} 21. Nb5 {[%clk 0:01:45.8]} 21... Qe7 {[%clk 0:01:30.4]}
22. e5 {[%clk 0:01:35.8]} 22... Bc6 {[%clk 0:01:24.8]} 23. Bd2 {[%clk
0:01:10.5]} 23... Rad8 {[%clk 0:01:19.5]} 24. Qe3 {[%clk 0:01:08.2]} 24... Qh4
{[%clk 0:01:04.7]} 25. Qg5 {[%clk 0:01:07]} 25... Qh3 {[%clk 0:01:05.2]} 26. Qg4
{[%clk 0:01:01.1]} 26... Qxf3 {[%clk 0:01:04]} 27. Qxf3 {[%clk 0:01:01.2]} 27...
Bxf3 {[%clk 0:01:05.6]} 28. Bb4 {[%clk 0:00:54.2]} 28... Rfe8 {[%clk 0:01:06.1]}
29. Bc5 {[%clk 0:00:54.9]} 29... Bf8 {[%clk 0:00:59]} 30. Bxf8 {[%clk
0:00:48.4]} 30... Rxf8 {[%clk 0:00:53.3]} 31. Rfe1 {[%clk 0:00:49.1]} 31... Rd7
{[%clk 0:00:47.6]} 32. Rb4 {[%clk 0:00:46.3]} 32... Rfd8 {[%clk 0:00:33.5]} 33.
Be2 {[%clk 0:00:45.1]} 33... Bxe2 {[%clk 0:00:30.1]} 34. Rxe2 {[%clk 0:00:47]}
34... Nf4 {[%clk 0:00:31]} 35. Rc2 {[%clk 0:00:48.2]} 35... Rb8 {[%clk
0:00:24.3]} 36. Kf1 {[%clk 0:00:30.1]} 36... Rb6 {[%clk 0:00:25.1]} 37. f3
{[%clk 0:00:23.3]} 37... Rd5 {[%clk 0:00:25.8]} 38. Rc5 {[%clk 0:00:18.4]} 38...
Rb7 {[%clk 0:00:25.6]} 39. h4 {[%clk 0:00:07.5]} 39... Kg7 {[%clk 0:00:26.2]}
40. Rxd5 {[%clk 0:00:07.7]} 40... Nxd5 {[%clk 0:00:26.6]} 41. Rb1 {[%clk
0:00:09]} 41... c6 {[%clk 0:00:21.1]} 42. Nc3 {[%clk 0:00:09.6]} 42... Rxb1+
{[%clk 0:00:22.4]} 43. Nxb1 {[%clk 0:00:11.5]} 43... Kh6 {[%clk 0:00:23.7]} 44.
Nd2 {[%clk 0:00:12.1]} 44... g5 {[%clk 0:00:24.4]} 45. hxg5+ {[%clk 0:00:12.2]}
45... Kxg5 {[%clk 0:00:26.2]} 46. Kf2 {[%clk 0:00:13.8]} 46... Kf4 {[%clk
0:00:27.2]} 47. Nc4 {[%clk 0:00:14.5]} 47... h5 {[%clk 0:00:27.2]} 48. Nb2
{[%clk 0:00:15.2]} 48... Nc3 {[%clk 0:00:27.1]} 49. Nd3+ {[%clk 0:00:16.1]}
49... Kf5 {[%clk 0:00:28.3]} 50. Kg3 {[%clk 0:00:17.4]} 50... Nb5 {[%clk
0:00:29.5]} 51. Nc5 {[%clk 0:00:18.5]} 51... Nxa3 {[%clk 0:00:30.4]} 52. Nxa4
{[%clk 0:00:19.8]} 52... Nb5 {[%clk 0:00:31]} 53. Nc5 {[%clk 0:00:18.9]} 53...
Nxd4 {[%clk 0:00:32.5]} 54. Nd7 {[%clk 0:00:18.9]} 54... h4+ {[%clk 0:00:29.8]}
55. Kxh4 {[%clk 0:00:13.4]} 55... Nxf3+ {[%clk 0:00:30.4]} 0-1

[Event "*** MasterClass Titled Tuesday Blitz"]
[Site "Chess.com"]
[Date "2017.11.07"]
[Round "4"]
[White "Tobi-Wan-Kenobi"]
[Black "Koksik_13"]
[Result "1-0"]
[WhiteElo "2473"]
[BlackElo "2026"]
[TimeControl "180+2"]
[EndTime "15:02:12 PST"]
[Termination "Tobi-Wan-Kenobi won on time"]

1. d4 {[%clk 0:03:01.9]} 1... d5 {[%clk 0:03:00]} 2. c4 {[%clk 0:03:02.2]} 2...
e6 {[%clk 0:03:01.1]} 3. Nf3 {[%clk 0:03:03]} 3... a6 {[%clk 0:03:01.6]} 4. cxd5
{[%clk 0:02:56.8]} 4... exd5 {[%clk 0:03:02.3]} 5. Nc3 {[%clk 0:02:58.7]} 5...
c6 {[%clk 0:03:02.7]} 6. Bg5 {[%clk 0:02:55.4]} 6... Be7 {[%clk 0:03:00.1]} 7.
Bxe7 {[%clk 0:02:55.7]} 7... Qxe7 {[%clk 0:03:01.2]} 8. e3 {[%clk 0:02:57.6]}
8... Nf6 {[%clk 0:03:02.3]} 9. Be2 {[%clk 0:02:58.1]} 9... Nbd7 {[%clk
0:03:03.7]} 10. O-O {[%clk 0:02:58.8]} 10... O-O {[%clk 0:03:05.2]} 11. Rb1
{[%clk 0:02:57.2]} 11... a5 {[%clk 0:03:01.5]} 12. a3 {[%clk 0:02:57.5]} 12...
Re8 {[%clk 0:02:49.3]} 13. Re1 {[%clk 0:02:53.5]} 13... Nf8 {[%clk 0:02:48.2]}
14. b4 {[%clk 0:02:52.3]} 14... axb4 {[%clk 0:02:46]} 15. axb4 {[%clk
0:02:54.2]} 15... Bf5 {[%clk 0:02:45.6]} 16. Bd3 {[%clk 0:02:49.6]} 16... Bxd3
{[%clk 0:02:32]} 17. Qxd3 {[%clk 0:02:51.5]} 17... Ne4 {[%clk 0:02:32.9]} 18.
Nd2 {[%clk 0:02:42.7]} 18... Ng6 {[%clk 0:02:26.4]} 19. b5 {[%clk 0:02:33.7]}
19... Ra3 {[%clk 0:02:07.9]} 20. Ndxe4 {[%clk 0:02:30.8]} 20... dxe4 {[%clk
0:02:08.1]} 21. Qc4 {[%clk 0:02:31.7]} 21... Nh4 {[%clk 0:02:05.6]} 22. Ne2
{[%clk 0:02:10.4]} 22... Qf6 {[%clk 0:01:12]} 23. bxc6 {[%clk 0:02:00.6]} 23...
bxc6 {[%clk 0:01:12.1]} 24. Ng3 {[%clk 0:01:52.9]} 24... g6 {[%clk 0:01:03]} 25.
Qc5 {[%clk 0:01:33.2]} 25... Ra2 {[%clk 0:01:01.5]} 26. Nxe4 {[%clk 0:01:34.1]}
26... Qe6 {[%clk 0:00:19]} 27. Ng3 {[%clk 0:01:13.9]} 27... Qf6 {[%clk
0:00:19.9]} 28. Re2 {[%clk 0:01:08.1]} 28... Rxe2 {[%clk 0:00:19.2]} 29. Nxe2
{[%clk 0:01:10]} 29... h5 {[%clk 0:00:16.8]} 30. Rc1 {[%clk 0:01:07.8]} 30...
Rb8 {[%clk 0:00:13.2]} 31. Qxc6 {[%clk 0:00:58.3]} 31... Qxc6 {[%clk 0:00:08.6]}
32. Rxc6 {[%clk 0:00:58.4]} 32... Rb2 {[%clk 0:00:09.4]} 33. Kf1 {[%clk
0:00:58.9]} 33... Rb1+ {[%clk 0:00:09.6]} 34. Rc1 {[%clk 0:00:59.1]} 34... Rb2
{[%clk 0:00:10.8]} 35. Rd1 {[%clk 0:00:55.6]} 35... Nf5 {[%clk 0:00:11.8]} 36.
g3 {[%clk 0:00:53.7]} 36... Nd6 {[%clk 0:00:12.6]} 37. Rc1 {[%clk 0:00:43]}
37... Ne4 {[%clk 0:00:12.4]} 38. f3 {[%clk 0:00:40.9]} 38... Nd2+ {[%clk
0:00:10.8]} 39. Kf2 {[%clk 0:00:41.2]} 39... g5 {[%clk 0:00:12.3]} 40. d5 {[%clk
0:00:38.9]} 40... g4 {[%clk 0:00:13.1]} 41. d6 {[%clk 0:00:36.2]} 41... Rb7
{[%clk 0:00:05.1]} 42. Rd1 {[%clk 0:00:27.5]} 42... Nxf3 {[%clk 0:00:02.7]} 43.
d7 {[%clk 0:00:27.4]} 43... Rxd7 {[%clk 0:00:03.8]} 44. Rxd7 {[%clk 0:00:27.5]}
44... Nxh2 {[%clk 0:00:04.8]} 45. Nd4 {[%clk 0:00:27.6]} 45... h4 {[%clk
0:00:04]} 46. Kg2 {[%clk 0:00:28.2]} 46... h3+ {[%clk 0:00:05.3]} 47. Kxh2
{[%clk 0:00:28.8]} 1-0